lending/lending_fUSD_20250808
["ID","MTS","AMOUNT","RATE_DAILY","PERIOD"]
[377976419,1754641842285,-400.0,0.00018775,2]
[377976421,1754641842295,-400.0,0.00018775,2]
[377976422,1754641842304,-525.21,0.00018775,2]
[377976423,1754641842315,-400.0,0.00018775,2]
[377976424,1754641842324,-215.29270507,0.00018775,2]
[377976425,1754641842351,-184.70729493,0.00018775,2]
[377976426,1754641842362,-248.24775141,0.00018775,2]
[377976427,1754641842375,-151.75224859,0.00018775,2]
[377976428,1754641842385,-823.63,0.00018775,2]
[377976429,1754641842394,-119.69417867,0.00018775,2]
[377976430,1754641842405,-962.10582133,0.00018775,2]
[377976431,1754641842414,-376.27637263,0.00018775,2]
[377976432,1754641842426,-23.72362737,0.00018775,2]
[377976433,1754641842435,-480.44,0.00018775,2]
[377976434,1754641842445,-403.47817263,0.00018775,2]
[377976435,1754641842456,-82.55578533,0.00018775,2]
[377976436,1754641842466,-675.85,0.00018775,2]
[377976437,1754641842474,-799.54,0.00018775,2]
[377976438,1754641842483,-49.57422467,0.00018775,2]
[377976439,1754641842494,-628.23577533,0.00018775,2]
[377976440,1754641842506,-400.0,0.00018775,2]
[377976441,1754641842521,-1027.46,0.00018775,2]
[377976442,1754641842536,-87.39505467,0.00018775,2]
[377976443,1754641842550,-377.54494533,0.00018775,2]
[377976444,1754641842565,-400.0,0.00018775,2]
[377976445,1754641842579,-400.0,0.00018775,2]
[377976446,1754641842593,-1255.7,0.00018775,2]
[377976447,1754641842607,-400.0,0.00018775,2]
[377976448,1754641842620,-760.92,0.00018775,2]
[377976449,1754641842637,-400.0,0.00018775,2]
[377976450,1754641842650,-3665.23,0.00018775,2]
[377976451,1754641842664,-400.0,0.00018775,2]
[377976452,1754641842678,-400.0,0.00018775,2]
[377976453,1754641842692,-400.0,0.00018775,2]
[377976454,1754641842706,-400.0,0.00018775,2]
[377976455,1754641842721,-671.67,0.00018775,2]
[377976457,1754641842734,-400.0,0.00018775,2]
[377976459,1754641842748,-400.0,0.00018775,2]
[377976462,1754641842762,-400.0,0.00018775,2]
[377976464,1754641842775,-575.93505467,0.00018775,2]
[377976501,1754641843132,-646.77494533,0.00018775,2]
[377976503,1754641843144,-400.0,0.00018775,2]
[377976505,1754641843156,-400.0,0.00018775,2]
[377976507,1754641843168,-400.0,0.00018775,2]
[377976509,1754641843180,-400.0,0.00018775,2]
[377976511,1754641843192,-400.0,0.00018775,2]
[377976514,1754641843204,-567.51,0.00018775,2]
[377976516,1754641843216,-729.09271404,0.00018775,2]
[377976518,1754641843231,-588.0,0.00018775,2]
[377976521,1754641843250,-229.11728596,0.00018775,2]
[377976524,1754641843263,-400.0,0.00018775,2]
[377976526,1754641843276,-441.98,0.00018775,2]
[377976528,1754641843289,-488.23,0.00018775,2]
[377976530,1754641843301,-121.78031404,0.00018775,2]
[377976646,1754641846113,-26.47590739,0.00018775,2]
[377976647,1754641846618,-374.07477111,0.00018775,2]
[377976648,1754641846634,-774.56900746,0.00018775,2]
[377976649,1754641846643,-321.90099254,0.00018775,2]
[377976650,1754641846658,-78.09900746,0.00018775,2]
[377976651,1754641846668,-400.0,0.00018775,2]
[377976652,1754641846677,-524.58,0.00018775,2]
[377976653,1754641846686,-1549.1,0.00018775,2]
[377976654,1754641846695,-1425.55,0.00018775,2]
[377976655,1754641846705,-792.2,0.00018775,2]
[377976656,1754641846714,-778.72,0.00018775,2]
[377976657,1754641846724,-1856.0,0.00018775,2]
[377976658,1754641846734,-400.0,0.00018775,2]
[377976659,1754641846746,-1407.09,0.00018775,2]
[377976660,1754641846755,-400.0,0.00018775,2]
[377976661,1754641846765,-908.42,0.00018775,2]
[377976662,1754641846783,-400.0,0.00018775,2]
[377976663,1754641846795,-616.44,0.00018775,2]
[377976664,1754641846805,-420.57,0.00018775,2]
[377976665,1754641846815,-1232.37,0.00018775,2]
[377976666,1754641846824,-400.0,0.00018775,2]
[377976667,1754641846833,-459.58,0.00018775,2]
[377976668,1754641846843,-400.0,0.00018775,2]
[377976669,1754641846852,-886.99,0.00018775,2]
[377976670,1754641846862,-519.66,0.00018775,2]
[377976671,1754641846871,-400.0,0.00018775,2]
[377976672,1754641846881,-400.0,0.00018775,2]
[377976673,1754641846891,-1179.32,0.00018775,2]
[377976674,1754641846900,-400.0,0.00018775,2]
[377976675,1754641846909,-400.0,0.00018775,2]
[377976676,1754641846919,-662.18,0.00018775,2]
[377976677,1754641846928,-406.79,0.00018775,2]
[377976678,1754641846938,-400.0,0.00018775,2]
[377976679,1754641846948,-400.0,0.00018775,2]
[377976680,1754641846958,-472.6,0.00018775,2]
[377976681,1754641846967,-1056.97,0.00018775,2]
[377976682,1754641846977,-400.0,0.00018775,2]
[377976683,1754641846987,-566.37,0.00018775,2]
[377976684,1754641846997,-1238.22,0.00018775,2]
[377976685,1754641847007,-400.0,0.00018775,2]
[377976686,1754641847016,-400.0,0.00018775,2]
[377976687,1754641847025,-400.0,0.00018775,2]
[377976688,1754641847034,-410.44,0.00018775,2]
[377976689,1754641847043,-400.0,0.00018775,2]
[377976690,1754641847053,-470.02,0.00018775,2]
[377976691,1754641847062,-170.14098939,0.00018775,2]
[377976692,1754641847071,-444.72,0.00018775,2]
[377976693,1754641847081,-400.0,0.00018775,2]
[377976694,1754641847091,-400.0,0.00018775,2]
[377976695,1754641847101,-400.0,0.00018775,2]
[377976696,1754641847112,-486.37,0.00018775,2]
[377976697,1754641847121,-527.9,0.00018775,2]
[377976698,1754641847133,-623.39,0.00018775,2]
[377976699,1754641847143,-975.32,0.00018775,2]
[377976700,1754641847152,-400.0,0.00018775,2]
[377976701,1754641847161,-764.88,0.00018775,2]
[377976702,1754641847171,-475.23,0.00018775,2]
[377976703,1754641847180,-630.8,0.00018775,2]
[377976704,1754641847189,-3863.05,0.00018775,2]
[377976705,1754641847199,-974.27,0.00018775,2]
[377976706,1754641847208,-400.0,0.00018775,2]
[377976707,1754641847217,-400.0,0.00018775,2]
[377976708,1754641847226,-400.0,0.00018775,2]
[377976709,1754641847235,-400.0,0.00018775,2]
[377976710,1754641847245,-400.0,0.00018775,2]
[377976711,1754641847254,-627.58,0.00018775,2]
[377976712,1754641847263,-2144.22,0.00018775,2]
[377976713,1754641847272,-3707.2,0.00018775,2]
[377976714,1754641847282,-407.05,0.00018775,2]
[377976715,1754641847295,-400.0,0.00018775,2]
[377976716,1754641847304,-151.0,0.00018776,2]
[377976717,1754641847313,-151.944337,0.00018776,2]
[377976718,1754641847324,-500.0,0.00018778,2]
[377976719,1754641847333,-200.0,0.00018778,2]
[377976720,1754641847342,-1024.5426266,0.000188,2]
[377976721,1754641847351,-359.44,0.000188,2]
[377976722,1754641847362,-465.36,0.000188,2]
[377976723,1754641847372,-1635.10027,0.0001881,2]
[377976724,1754641847383,-150.0,0.00018815,2]
[377976725,1754641847393,-500.0,0.00018819,2]
[377976726,1754641847403,-1024.5426266,0.00018825,2]
[377976727,1754641847412,-168.0,0.00018839,2]
[377976728,1754641847422,-211.62674257,0.00018872,2]
[377976729,1754641847431,-842.44706758,0.00018875,2]
[377976730,1754641847441,-457.64618948,0.00018875,2]
[377976731,1754641847452,-160.0,0.00018875,2]
[377976732,1754641847461,-743.336,0.00018878,2]
[377976733,1754641847472,-150.0,0.00018884,2]
[377976734,1754641847485,-159.31250702,0.000189,2]
[377976735,1754641847494,-206.88692928,0.000189,3]
[377976736,1754641847503,-3826.70043494,0.000189,2]
[377976737,1754641847512,-751.81483726,0.000189,2]
[377976738,1754641847522,-1090.21759628,0.000189,2]
[377976739,1754641847532,-340.70701207,0.000189,2]
[377976740,1754641847541,-330.35562614,0.000189,2]
[377976741,1754641847551,-150.0,0.00018905,2]
[377976742,1754641847560,-1635.10027,0.0001892,2]
[377976743,1754641847569,-150.0,0.00018947,2]
[377976744,1754641847580,-185.0,0.00018954,2]
[377976745,1754641847589,-150.0,0.00018959,2]
[377976746,1754641847598,-500.0,0.00018973,2]
[377976747,1754641847607,-500.0,0.00018973,2]
[377976748,1754641847617,-500.0,0.00018973,2]
[377976749,1754641847626,-500.0,0.00018973,2]
[377976750,1754641847639,-500.0,0.00018973,2]
[377976751,1754641847648,-500.0,0.00018973,2]
[377976752,1754641847658,-500.0,0.00018973,2]
[377976753,1754641847667,-500.0,0.00018973,2]
[377976754,1754641847676,-500.0,0.00018973,2]
[377976755,1754641847685,-500.0,0.00018973,2]
[377976756,1754641847695,-252.00590759,0.00018973,2]
[377976757,1754641847704,-164.61390416,0.00018973,2]
[377976758,1754641847714,-239.4566,0.00018999,2]
[377976759,1754641847723,-1000.0,0.00018999,2]
[377976760,1754641847732,-400.0,0.00018999,2]
[377976761,1754641847741,-570.81,0.00018999,2]
[377976762,1754641847750,-1197.75,0.00018999,2]
[377976763,1754641847759,-1419.18,0.00018999,2]
[377976764,1754641847768,-400.0,0.00018999,2]
[377976765,1754641847777,-1381.78,0.00018999,2]
[377976766,1754641847788,-1432.43,0.00018999,2]
[377976767,1754641847798,-1160.51,0.00018999,2]
[377976768,1754641847806,-1848.06,0.00018999,2]
[377976769,1754641847816,-2199842.36351048,0.00019,2]
[377976770,1754641847830,-6334.65082938,0.00019,2]
[377976771,1754641847842,-1457.612391,0.00019,2]
[377976772,1754641847943,-64120.06199571,0.00019,2]
[377976773,1754641848805,-440.54417885,0.00018774,2]
[377976774,1754641848815,-400.0,0.00018775,2]
[377976775,1754641848824,-400.0,0.00018775,2]
[377976776,1754641848834,-6069.24981478,0.00019,2]
[377976777,1754641848861,175.0,0.00017969,7]
[377976778,1754641848874,-1054.95801165,0.00019,2]
[377976779,1754641848887,-12003.59516176,0.00019,2]
[377976780,1754641848916,-400.0,0.00018774,2]
[377976781,1754641848926,-69.18,0.00019,2]
[377976782,1754641848937,-254.13363879,0.00019,2]
[377976783,1754641848949,-10652.2005639,0.00019,2]
[377976784,1754641849022,-1176.0,0.00019,2]
[377976785,1754641849033,-2589.41580585,0.00019,2]
[377976786,1754641849707,-400.0,0.00018773,2]
[377976787,1754641849718,-1024.5426266,0.0001885,2]
[377976788,1754641849727,-168.22970333,0.0001899,2]
[377976789,1754641849737,-221917.42639703,0.00019,2]
[377976790,1754641951520,150.0,0.000158,2]
[377976791,1754641951885,150.0,0.0001698,2]
[377976792,1754641976714,1000.0,0.00017954,2]
[377976793,1754641988613,158.65,0.00017951,2]
[377976794,1754642016985,-156.54,0.00018011,2]
[377976795,1754642019194,-157.54,0.00018011,2]
[377976796,1754642023223,-93.6568,0.00018011,2]
[377976797,1754642205810,509.0,0.00017794,2]
[377976798,1754642237590,250.0,0.00017855,2]
[377976801,1754642385102,12121.77,0.00017815,2]
[377976802,1754642394399,285.93,0.00015068,2]
[377976803,1754642394596,285.93,0.00016655,2]
[377976804,1754642445609,297.4,0.00013699,2]
[377976806,1754642479394,150.0,0.000158,2]
[377976807,1754642479781,150.0,0.0001698,2]
[377976808,1754642605944,666.0,0.00017753,3]
[377976809,1754642616093,1331.13,0.00017753,2]
[377976810,1754642620780,867.45,0.00017753,2]
[377976811,1754642675807,165.57,0.0001778,2]
[377976812,1754642757748,150.0,0.00017862,2]
[377976813,1754642822596,191.96,0.00014263,2]
[377976827,1754642894516,191.67,0.00017739,2]
[377976828,1754642924996,1000.0,0.00017732,2]
[377976829,1754642962267,175.0,0.00017732,7]
[377976830,1754643004643,150.0,0.000158,2]
[377976831,1754643004822,150.0,0.0001698,2]
[377976835,1754643031868,-313.1983,0.0001807,2]
[377976836,1754643031878,-250.0,0.0001812,2]
[377976837,1754643031887,-150.0,0.0001817,2]
[377976838,1754643031897,-150.0,0.0001817,2]
[377976839,1754643031906,-1000.0,0.00018188,4]
[377976840,1754643031915,-285.93,0.00018242,2]
[377976841,1754643031924,-1000.0,0.00018291,4]
[377976842,1754643031933,-400.0,0.000184,6]
[377976843,1754643031942,-800.0,0.000185,6]
[377976844,1754643031951,-1300.0,0.000186,6]
[377976845,1754643031961,-191.67,0.00018625,2]
[377976846,1754643031970,-1200.0,0.00018629,2]
[377976848,1754643031979,-3050.0,0.0001863,2]
[377976850,1754643031988,-13.9239971,0.00018652,2]
[377976851,1754643031999,-365.8360029,0.00018652,2]
[377976852,1754643032009,-204.90852532,0.00018673,2]
[377976853,1754643032018,-1621.27807281,0.00018674,2]
[377976854,1754643032029,-4012.42043884,0.00018674,2]
[377976855,1754643032048,-2250.28651878,0.00018674,2]
[377976865,1754643037566,-3340.5,0.00018674,2]
[377976866,1754643037601,-1294.64326957,0.00018674,2]
[377976867,1754643037611,-164.33159057,0.00018674,2]
[377976868,1754643037621,-204.90852532,0.00018698,2]
[377976869,1754643037630,-1180.41,0.000187,2]
[377976870,1754643037640,-1700.0,0.000187,6]
[377976871,1754643037649,-237.61631062,0.000187,2]
[377976872,1754643037661,-204.90852532,0.00018723,2]
[377976873,1754643037671,-150.0,0.00018733,2]
[377976874,1754643037681,-267.46074303,0.00018741,2]
[377976875,1754643037690,-204.90852532,0.00018749,2]
[377976876,1754643037699,-3375.44235703,0.00018753,2]
[377976877,1754643037816,-848.43938388,0.00018753,2]
[377976878,1754643037826,-150.0,0.00018753,2]
[377976879,1754643037835,-500.0,0.0001876,2]
[377976880,1754643037845,-150.0,0.0001876,2]
[377976881,1754643037854,-160.0,0.00018763,2]
[377976882,1754643037864,-151.0,0.00018763,2]
[377976883,1754643037873,-179.0,0.00018763,2]
[377976884,1754643037882,-82.98699623,0.00018768,2]
[377976885,1754643037894,-67.01300377,0.00018768,2]
[377976886,1754643037904,-1357.41,0.00018772,2]
[377976887,1754643037913,-1107.07,0.00018772,2]
[377976888,1754643037923,-433.20231899,0.00018772,2]
[377976889,1754643037934,-971.68768101,0.00018772,2]
[377976890,1754643037943,-225.61096755,0.00018772,2]
[377976891,1754643037952,-705.65,0.00018772,2]
[377976892,1754643037962,-1110.21,0.00018772,2]
[377976893,1754643037972,-1722.01,0.00018772,2]
[377976894,1754643037981,-2352.41,0.00018772,2]
[377976895,1754643037991,-465.78954907,0.00018772,2]
[377976896,1754643038007,-919.34246243,0.00018772,2]
[377976897,1754643038018,-73.8679885,0.00018772,2]
[377976898,1754643038027,-405.98717131,0.00018772,2]
[377976902,1754643039542,-1181.14282869,0.00018772,2]
[377976903,1754643039552,-631.27055995,0.00018772,2]
[377976904,1754643039563,-358.33944005,0.00018772,2]
[377976905,1754643039572,-570.81,0.00018772,2]
[377976906,1754643039582,-389.45188045,0.00018772,2]
[377976907,1754643039610,-1666.06811955,0.00018772,2]
[377976908,1754643039619,-400.0,0.00018772,2]
[377976909,1754643039629,-407.21266183,0.00018772,2]
[377976910,1754643039638,-558.25,0.00018772,2]
[377976911,1754643039647,-807.72,0.00018772,2]
[377976912,1754643039657,-634.5,0.00018772,2]
[377976913,1754643039669,-625.85,0.00018773,2]
[377976914,1754643039680,-400.0,0.00018773,2]
[377976915,1754643039689,-400.0,0.00018773,2]
[377976916,1754643039699,-400.0,0.00018773,2]
[377976917,1754643039709,-439.22,0.00018773,2]
[377976918,1754643039718,-400.0,0.00018773,2]
[377976919,1754643039728,-663.95,0.00018773,2]
[377976920,1754643039737,-721.0,0.00018773,2]
[377976921,1754643039748,-401.60927514,0.00018773,2]
[377976922,1754643039757,-400.0,0.00018773,2]
[377976923,1754643039768,-476.89,0.00018773,2]
[377976924,1754643039778,-400.0,0.00018773,2]
[377976925,1754643039788,-400.0,0.00018773,2]
[377976926,1754643039797,-548.64,0.00018773,2]
[377976927,1754643039806,-468.98,0.00018773,2]
[377976928,1754643039815,-533.10473537,0.00018773,2]
[377976929,1754643039824,-400.0,0.00018773,2]
[377976930,1754643039833,-400.0,0.00018773,2]
[377976931,1754643039843,-400.0,0.00018773,2]
[377976932,1754643039852,-400.0,0.00018773,2]
[377976933,1754643039862,-782.61,0.00018773,2]
[377976934,1754643039870,-400.0,0.00018773,2]
[377976935,1754643039880,-415.67,0.00018773,2]
[377976936,1754643039889,-400.0,0.00018773,2]
[377976937,1754643039898,-400.0,0.00018773,2]
[377976938,1754643039907,-400.0,0.00018773,2]
[377976939,1754643039916,-400.0,0.00018773,2]
[377976940,1754643039926,-453.78,0.00018773,2]
[377976941,1754643039935,-400.0,0.00018773,2]
[377976942,1754643039944,-400.0,0.00018773,2]
[377976943,1754643039953,-400.0,0.00018773,2]
[377976944,1754643039962,-400.0,0.00018773,2]
[377976945,1754643039972,-706.93,0.00018773,2]
[377976946,1754643039981,-400.0,0.00018773,2]
[377976947,1754643039990,-400.0,0.00018773,2]
[377976948,1754643040000,-400.0,0.00018773,2]
[377976949,1754643040009,-400.0,0.00018773,2]
[377976950,1754643040019,-400.0,0.00018773,2]
[377976951,1754643040027,-400.0,0.00018773,2]
[377976952,1754643040037,-713.03,0.00018773,2]
[377976953,1754643040046,-400.0,0.00018773,2]
[377976954,1754643040055,-831.3,0.00018773,2]
[377976955,1754643040064,-400.0,0.00018773,2]
[377976956,1754643040073,-400.0,0.00018773,2]
[377976957,1754643040083,-400.0,0.00018773,2]
[377976958,1754643040092,-400.0,0.00018773,2]
[377976959,1754643040102,-400.0,0.00018773,2]
[377976960,1754643040111,-451.91,0.00018773,2]
[377976961,1754643040122,-495.28,0.00018773,2]
[377976962,1754643040131,-400.0,0.00018773,2]
[377976963,1754643040142,-400.0,0.00018773,2]
[377976964,1754643040151,-703.0,0.00018773,2]
[377976965,1754643040160,-685.01,0.00018773,2]
[377976966,1754643040170,-400.0,0.00018773,2]
[377976967,1754643040179,-400.0,0.00018773,2]
[377976968,1754643040190,-400.0,0.00018773,2]
[377976969,1754643040200,-692.57,0.00018773,2]
[377976970,1754643040210,-443.6,0.00018773,2]
[377976971,1754643040220,-539.96,0.00018773,2]
[377976972,1754643040229,-400.0,0.00018773,2]
[377976973,1754643040238,-400.0,0.00018773,2]
[377976974,1754643040248,-400.0,0.00018773,2]
[377976975,1754643040257,-639.49,0.00018773,2]
[377976976,1754643040266,-400.0,0.00018773,2]
[377976977,1754643040276,-400.0,0.00018773,2]
[377976978,1754643040285,-484.3,0.00018773,2]
[377976979,1754643040294,-482.15,0.00018773,2]
[377976980,1754643040303,-400.0,0.00018773,2]
[377976981,1754643040312,-131.43544682,0.00018773,2]
[377976982,1754643040343,-488.91455318,0.00018773,2]
[377976983,1754643040354,-400.0,0.00018773,2]
[377976984,1754643040363,-400.0,0.00018773,2]
[377976985,1754643040373,-400.0,0.00018773,2]
[377976986,1754643040382,-400.0,0.00018773,2]
[377976987,1754643040391,-585.02,0.00018773,2]
[377976988,1754643040401,-437.71,0.00018773,2]
[377976989,1754643040410,-771.05,0.00018773,2]
[377976990,1754643040420,-185.0,0.00018773,2]
[377976991,1754643040429,-621.5,0.00018773,2]
[377976992,1754643040438,-506.91,0.00018773,2]
[377976993,1754643040448,-400.0,0.00018773,2]
[377976994,1754643040459,-379.74446553,0.00018773,2]
[377976995,1754643040469,-416.02,0.00018773,2]
[377976996,1754643040479,-400.0,0.00018773,2]
[377976997,1754643040489,-565.29,0.00018773,2]
[377976998,1754643040500,-400.0,0.00018773,2]
[377976999,1754643040509,-400.0,0.00018773,2]
[377977000,1754643040518,-717.02,0.00018773,2]
[377977001,1754643040527,-405.48008543,0.00018773,2]
[377977002,1754643040536,-618.48,0.00018773,2]
[377977003,1754643040546,-400.0,0.00018773,2]
[377977004,1754643040557,-400.0,0.00018773,2]
[377977005,1754643040566,-400.0,0.00018773,2]
[377977006,1754643040576,-928.84,0.00018773,2]
[377977007,1754643040586,-400.0,0.00018773,2]
[377977008,1754643040595,-400.0,0.00018773,2]
[377977009,1754643040604,-484.13,0.00018773,2]
[377977010,1754643040614,-881.96,0.00018773,2]
[377977011,1754643040624,-648.95,0.00018773,2]
[377977012,1754643040633,-801.59,0.00018773,2]
[377977013,1754643040642,-481.06,0.00018773,2]
[377977014,1754643040651,-400.0,0.00018773,2]
[377977015,1754643040662,-963.96,0.00018773,2]
[377977016,1754643040675,-400.0,0.00018773,2]
[377977017,1754643040684,-400.0,0.00018773,2]
[377977018,1754643040693,-400.0,0.00018773,2]
[377977019,1754643040703,-594.34,0.00018773,2]
[377977020,1754643040712,-805.59,0.00018773,2]
[377977021,1754643040721,-400.0,0.00018773,2]
[377977022,1754643040731,-400.0,0.00018773,2]
[377977023,1754643040740,-738.79,0.00018773,2]
[377977024,1754643040750,-660.68,0.00018773,2]
[377977025,1754643040760,-400.0,0.00018773,2]
[377977026,1754643040769,-400.0,0.00018773,2]
[377977027,1754643040778,-738.86,0.00018773,2]
[377977028,1754643040788,-400.0,0.00018773,2]
[377977029,1754643040797,-467.89,0.00018773,2]
[377977030,1754643040807,-400.0,0.00018773,2]
[377977031,1754643040816,-959.93,0.00018773,2]
[377977032,1754643040826,-791.62,0.00018773,2]
[377977033,1754643040836,-400.0,0.00018773,2]
[377977034,1754643040845,-505.46290763,0.00018773,2]
[377977035,1754643040855,-400.0,0.00018773,2]
[377977036,1754643040864,-847.47,0.00018773,2]
[377977037,1754643040873,-400.0,0.00018773,2]
[377977038,1754643040882,-779.64,0.00018773,2]
[377977039,1754643040891,-400.0,0.00018773,2]
[377977040,1754643040901,-683.72,0.00018773,2]
[377977041,1754643040910,-362.625174,0.00018773,2]
[377977042,1754643040920,-400.0,0.00018773,2]
[377977043,1754643040928,-459.67,0.00018773,2]
[377977044,1754643040938,-444.713426,0.00018773,2]
[377977045,1754643040947,-400.0,0.00018773,2]
[377977046,1754643040956,-400.0,0.00018773,2]
[377977047,1754643040966,-400.0,0.00018773,2]
[377977048,1754643040975,-400.0,0.00018773,2]
[377977049,1754643040986,-490.76,0.00018773,2]
[377977050,1754643040995,-956.62,0.00018773,2]
[377977051,1754643041004,-400.0,0.00018773,2]
[377977052,1754643041013,-662.22,0.00018773,2]
[377977053,1754643041023,-671.81,0.00018773,2]
[377977054,1754643041034,-400.0,0.00018773,2]
[377977055,1754643041043,-598.74,0.00018773,2]
[377977056,1754643041052,-472.83,0.00018773,2]
[377977057,1754643041062,-391.486539,0.00018773,2]
[377977058,1754643041072,-400.0,0.00018773,2]
[377977059,1754643041082,-663.22,0.00018773,2]
[377977060,1754643041091,-804.68,0.00018773,2]
[377977061,1754643041100,-400.0,0.00018773,2]
[377977062,1754643041111,-400.0,0.00018773,2]
[377977063,1754643041120,-400.0,0.00018773,2]
[377977064,1754643041130,-400.0,0.00018773,2]
[377977065,1754643041139,-400.0,0.00018773,2]
[377977066,1754643041149,-470.79,0.00018773,2]
[377977067,1754643041157,-758.67,0.00018773,2]
[377977068,1754643041168,-447.82,0.00018773,2]
[377977069,1754643041177,-916.74,0.00018773,2]
[377977070,1754643041187,-400.0,0.00018773,2]
[377977071,1754643041195,-1303.05,0.00018773,2]
[377977072,1754643041205,-696.09,0.00018773,2]
[377977073,1754643041216,-799.25,0.00018773,2]
[377977074,1754643041226,-400.0,0.00018773,2]
[377977075,1754643041236,-400.0,0.00018773,2]
[377977076,1754643041245,-400.0,0.00018773,2]
[377977077,1754643041255,-400.0,0.00018773,2]
[377977078,1754643041265,-873.54,0.00018773,2]
[377977079,1754643041275,-580.49,0.00018773,2]
[377977080,1754643041284,-641.49,0.00018773,2]
[377977081,1754643041296,-814.67,0.00018773,2]
[377977082,1754643041315,-400.0,0.00018773,2]
[377977083,1754643041325,-1039.01,0.00018773,2]
[377977084,1754643041334,-400.0,0.00018773,2]
[377977085,1754643041343,-400.0,0.00018773,2]
[377977086,1754643041352,-599.71,0.00018773,2]
[377977087,1754643041362,-400.0,0.00018773,2]
[377977088,1754643041371,-400.0,0.00018773,2]
[377977089,1754643041383,-400.0,0.00018773,2]
[377977090,1754643041393,-599.68,0.00018773,2]
[377977091,1754643041403,-400.0,0.00018773,2]
[377977092,1754643041412,-400.0,0.00018773,2]
[377977093,1754643041422,-1190.13,0.00018773,2]
[377977094,1754643041431,-400.0,0.00018773,2]
[377977095,1754643041440,-407.37,0.00018773,2]
[377977096,1754643041450,-400.0,0.00018773,2]
[377977097,1754643041459,-544.7,0.00018773,2]
[377977098,1754643041468,-1237.41,0.00018773,2]
[377977099,1754643041477,-686.49,0.00018773,2]
[377977100,1754643041486,-400.0,0.00018773,2]
[377977101,1754643041495,-589.32,0.00018773,2]
[377977102,1754643041504,-400.0,0.00018773,2]
[377977103,1754643041513,-641.09,0.00018773,2]
[377977104,1754643041523,-400.0,0.00018773,2]
[377977105,1754643041531,-865.13,0.00018773,2]
[377977106,1754643041542,-400.0,0.00018773,2]
[377977107,1754643041551,-400.0,0.00018773,2]
[377977108,1754643041561,-400.0,0.00018773,2]
[377977109,1754643041570,-400.0,0.00018773,2]
[377977110,1754643041580,-249.95796675,0.00018773,2]
[377977111,1754643041589,-400.0,0.00018773,2]
[377977112,1754643041599,-409.98021162,0.00018773,2]
[377977113,1754643041609,-972.64,0.00018773,2]
[377977114,1754643041619,-444.31343692,0.00018773,2]
[377977115,1754643041629,-400.0,0.00018773,2]
[377977116,1754643041638,-905.29,0.00018773,2]
[377977117,1754643041648,-499.18,0.00018773,2]
[377977118,1754643041659,-400.0,0.00018773,2]
[377977119,1754643041671,-480.7,0.00018773,2]
[377977120,1754643041680,-401.13546377,0.00018773,2]
[377977121,1754643041689,-400.0,0.00018773,2]
[377977122,1754643041699,-400.0,0.00018773,2]
[377977123,1754643041709,-715.9,0.00018773,2]
[377977124,1754643041718,-400.0,0.00018773,2]